Workbook

Sheet Początek
B1: INFORMACJE O TYM SZABLONIE
B2: Ten skoroszyt budżetu wydarzenia umożliwia śledzenie poniesionych wydatków i uzyskanego przychodu w ramach wydarzenia.
B3: Wprowadź nazwę wydarzenia i szczegółowe informacje w tabelach w arkuszach Wydatki i Przychód.
B4: Suma wydatków i łączny przychód zostaną obliczone automatycznie.
B5: Wykres i podsumowanie zysków i strat są aktualizowane automatycznie w arkuszu Podsumowanie zysków i strat.
B6: Uwaga:
B7: W kolumnie A w każdym arkuszu podano dodatkowe instrukcje. Ten tekst celowo został ukryty. Aby usunąć tekst, zaznacz kolumnę A, a następnie naciśnij klawisz DELETE.
B8: Aby uzyskać więcej informacji o tabelach, w tabeli naciśnij klawisz SHIFT, a następnie F10, wybierz pozycję TABELA, a następnie TEKST ALTERNATYWNY

Sheet Wydatki
A1: W odpowiednich tabelach w tym arkuszu wprowadź szacowane i rzeczywiste wydatki dla każdej kategorii. W komórce D1 wprowadź nazwę wydarzenia, aby dostosować tytuł tego i innych arkuszy. W komórce H1 znajduje się podtytuł tego arkusza. W komórkach w tej kolumnie podano przydatne instrukcje na temat korzystania z tego arkusza. Dalsze instrukcje znajdują się w komórce A3. | B1: Budżet wydarzenia | D1: Nazwa wydarzenia | H1: WYDATKI
A3: W komórce po prawej stronie znajduje się etykieta Suma wydatków, w komórce G3 — etykieta Szacowane, a w komórce H3 — etykieta Rzeczywiste. | B3: SUMA WYDATKÓW | G3: Szacowane | H3: Rzeczywiste
A4: Suma szacowanych wydatków w komórce G4 i suma rzeczywistych wydatków w komórce H4 są obliczane automatycznie. Dalsze instrukcje znajdują się w komórce A6. | G4: =SUM(C11,C19,C25,C32,G11,G19,G24) -> $882.00 | H4: =SUM(D11,D19,D25,D32,H11,H19,H24) -> $302.00
A6: W tabeli zaczynającej się w komórce po prawej stronie wprowadź wydatki dotyczące miejsca, a w tabeli zaczynającej się w komórce F6 — wydatki na poczęstunek. Dalsze instrukcje znajdują się w komórce A13. | B6: Miejsce | C6: Szacowane | D6: Rzeczywiste | F6: Poczęstunek | G6: Szacowane | H6: Rzeczywiste
B7: Opłaty za pomieszczenia | C7: 500.00 zł | F7: Żywność
B8: Personel na miejscu | F8: Napoje | G8: 20.00 zł
B9: Wyposażenie | F9: Obrusy | H9: 20.00 zł
B10: Stoły i krzesła | F10: Personel i napiwki
B11: Suma | C11: =SUBTOTAL(109,WydatkiNaMiejscu[Szacowane]) -> 500.00 zł | D11: =SUBTOTAL(103,WydatkiNaMiejscu[Rzeczywiste]) -> 0.00 zł | F11: Suma | G11: =SUBTOTAL(109,KosztyPoczęstunku[Szacowane]) -> 20.00 zł | H11: =SUBTOTAL(103,KosztyPoczęstunku[Rzeczywiste]) -> 1.00 zł
A13: W tabeli zaczynającej się w komórce po prawej stronie wprowadź wydatki na dekoracje, a w tabeli zaczynającej się w komórce F13 — wydatki dotyczące programu. Dalsze instrukcje znajdują się w komórce A21. | B13: Dekoracje | C13: Szacowane | D13: Rzeczywiste | F13: Program | G13: Szacowane | H13: Rzeczywiste
B14: Kwiaty | C14: 200.00 zł | D14: 300.00 zł | F14: Artyści
B15: Świece | F15: Prelegenci | G15: 30.00 zł
B16: Oświetlenie | F16: Podróże
B17: Balony | F17: Hotel
B18: Materiały papiernicze | F18: Inne
B19: Suma | C19: =SUBTOTAL(109,KosztyDekoracji[Szacowane]) -> 200.00 zł | D19: =SUBTOTAL(109,KosztyDekoracji[Rzeczywiste]) -> 300.00 zł | F19: Suma | G19: =SUBTOTAL(109,KosztyProgramu[Szacowane]) -> 30.00 zł | H19: =SUBTOTAL(103,KosztyProgramu[Rzeczywiste]) -> 0.00 zł
A21: W tabeli zaczynającej się w komórce po prawej stronie wprowadź wydatki na promocję, a w tabeli zaczynającej się w komórce F21 — wydatki na nagrody. Dalsze instrukcje znajdują się w komórce A27. | B21: Promocja | C21: Szacowane | D21: Rzeczywiste | F21: Nagrody | G21: Szacowane | H21: Rzeczywiste
B22: Prace graficzne | F22: Wstęgi/Odznaki/Trofea
B23: Fotokopie/druk | C23: 20.00 zł | F23: Prezenty | G23: 100.00 zł
B24: Opłaty pocztowe | F24: Suma | G24: =SUBTOTAL(109,KosztyNagród[Szacowane]) -> 100.00 zł | H24: =SUBTOTAL(103,KosztyNagród[Rzeczywiste]) -> 0.00 zł
B25: Suma | C25: =SUBTOTAL(109,KosztyPromocji[Szacowane]) -> 20.00 zł | D25: =SUBTOTAL(103,KosztyPromocji[Rzeczywiste]) -> 0.00 zł
A27: W tabeli zaczynającej się w komórce po prawej stronie wprowadź wydatki różne. | B27: Różne | C27: Szacowane | D27: Rzeczywiste
B28: Telefon | D28: 13.00 zł
B29: Transport | C29: 12.00 zł
B30: Materiały biurowe
B31: Usługi faksowe
B32: Suma | C32: =SUBTOTAL(109,KosztyPozostałe[Szacowane]) -> 12.00 zł | D32: =SUBTOTAL(103,KosztyPozostałe[Rzeczywiste]) -> 1.00 zł

Sheet Przychód
A1: W odpowiednich tabelach w tym arkuszu wprowadź szacowany i rzeczywisty przychód dla każdej kategorii. W komórkach po prawej stronie jest automatycznie aktualizowany tytuł tego arkusza. Podtytuł znajduje się w komórce G1. W komórkach w tej kolumnie podano przydatne instrukcje na temat korzystania z tego arkusza. Dalsze instrukcje znajdują się w komórce A3. | B1: =Wydatki!B1 -> Budżet wydarzenia | D1: =Wydatki!D1 -> Nazwa wydarzenia | G1: PRZYCHÓD
A3: W komórce po prawej stronie znajduje się etykieta Łączny przychód, w komórce F3 — etykieta Szacowane, a w komórce G3 — etykieta Rzeczywiste. | B3: ŁĄCZNY PRZYCHÓD | F3: Szacowane | G3: Rzeczywiste
A4: W komórce F4 jest automatycznie obliczany łączny szacowany przychód, a w komórce G4 — łączny rzeczywisty przychód. | F4: =SUM(Wpisowe[[#Totals],[Szacowany przychód]],ReklamyWProgramie[[#Totals],[Szacowany przychód]],WystawcyIDostawcy[[#Totals],[Szacowany przychód]],SprzedażArtykułów[[#Totals],[Szacowany przychód]]) -> 1,936.00 zł | G4: =SUM(Wpisowe[[#Totals],[Rzeczywisty przychód]],ReklamyWProgramie[[#Totals],[Rzeczywisty przychód]],WystawcyIDostawcy[[#Totals],[Rzeczywisty przychód]],SprzedażArtykułów[[#Totals],[Rzeczywisty przychód]]) -> 1,831.00 zł
A5: W komórce po prawej stronie znajduje się etykieta Bilety wstępu. | B5: BILETY WSTĘPU
A6: W tabeli zaczynającej się w komórce po prawej stronie wprowadź szacowaną i rzeczywistą liczbę biletów wstępu wraz z różnymi cenami biletów. Szacowany i rzeczywisty przychód z biletów są obliczane automatycznie. Dalsze instrukcje znajdują się w komórce A11. | B6: Liczba szacowana | C6: Liczba rzeczywista | D6: Typ | E6: Cena | F6: Szacowany przychód | G6: Rzeczywisty przychód
B7: 300 | C7: 278 | D7: Dorośli w cenie | E7: 5.00 zł | F7: =B7*E7 -> 1,500.00 zł | G7: =C7*E7 -> 1,390.00 zł
B8: 197 | C8: 195 | D8: Dzieci w cenie | E8: 2.00 zł | F8: =B8*E8 -> 394.00 zł | G8: =C8*E8 -> 390.00 zł
B9: 42 | C9: 51 | D9: Inne w cenie | E9: 1.00 zł | F9: =B9*E9 -> 42.00 zł | G9: =C9*E9 -> 51.00 zł
B10: Suma | F10: =SUBTOTAL(109,Wpisowe[Szacowany przychód]) -> 1,936.00 zł | G10: =SUBTOTAL(109,Wpisowe[Rzeczywisty przychód]) -> 1,831.00 zł
A11: W komórce po prawej stronie znajduje się etykieta Reklamy w programie. | B11: REKLAMY W PROGRAMIE
A12: W tabeli zaczynającej się w komórce po prawej stronie wprowadź szacowaną i rzeczywistą liczbę reklam w programie. Szacowany i rzeczywisty przychód z reklam są obliczane automatycznie. Dalsze instrukcje znajdują się w komórce A17. | B12: Liczba szacowana | C12: Liczba rzeczywista | D12: Typ | E12: Cena | F12: Szacowany przychód | G12: Rzeczywisty przychód
B13: 12 | D13: Okładki w cenie | F13: =B13*E13 -> 0.00 zł | G13: =C13*E13 -> 0.00 zł
C14: 158 | D14: Połowy stron w cenie | F14: =B14*E14 -> 0.00 zł | G14: =C14*E14 -> 0.00 zł
B15: 4 | D15: Ćwiartki stron w cenie | F15: =B15*E15 -> 0.00 zł | G15: =C15*E15 -> 0.00 zł
B16: Suma | F16: =SUBTOTAL(109,ReklamyWProgramie[Szacowany przychód]) -> 0.00 zł | G16: =SUBTOTAL(109,ReklamyWProgramie[Rzeczywisty przychód]) -> 0.00 zł
A17: W komórce po prawej stronie znajduje się etykieta Wystawcy/sprzedawcy. | B17: WYSTAWCY/SPRZEDAWCY
A18: W tabeli zaczynającej się w komórce po prawej stronie wprowadź szacowaną i rzeczywistą liczbę wystawców lub sprzedawców wraz z różnymi cenami stoisk. Szacowany i rzeczywisty przychód są obliczane automatycznie. Dalsze instrukcje znajdują się w komórce A23. | B18: Liczba szacowana | C18: Liczba rzeczywista | D18: Typ | E18: Cena | F18: Szacowany przychód | G18: Rzeczywisty przychód
B19: 23 | D19: Duże stoiska w cenie | F19: =B19*E19 -> 0.00 zł | G19: =C19*E19 -> 0.00 zł
B20: 354 | D20: Średnie stoiska w cenie | F20: =B20*E20 -> 0.00 zł | G20: =C20*E20 -> 0.00 zł
B21: 56 | D21: Małe stoiska w cenie | F21: =B21*E21 -> 0.00 zł | G21: =C21*E21 -> 0.00 zł
B22: Suma | F22: =SUBTOTAL(109,WystawcyIDostawcy[Szacowany przychód]) -> 0.00 zł | G22: =SUBTOTAL(109,WystawcyIDostawcy[Rzeczywisty przychód]) -> 0.00 zł
A23: W komórce po prawej stronie znajduje się etykieta Sprzedaż produktów. | B23: SPRZEDAŻ PRODUKTÓW
A24: W tabeli zaczynającej się w komórce po prawej stronie wprowadź szacowaną i rzeczywistą liczbę sprzedanych produktów wraz z cenami. Szacowany i rzeczywisty przychód są obliczane automatycznie. | B24: Liczba szacowana | C24: Liczba rzeczywista | D24: Typ | E24: Cena | F24: Szacowany przychód | G24: Rzeczywisty przychód
D25: Produkty w cenie | F25: =B25*E25 -> 0.00 zł | G25: =C25*E25 -> 0.00 zł
B26: 123 | D26: Produkty w cenie | F26: =B26*E26 -> 0.00 zł | G26: =C26*E26 -> 0.00 zł
D27: Produkty w cenie | F27: =B27*E27 -> 0.00 zł | G27: =C27*E27 -> 0.00 zł
B28: 13 | D28: Produkty w cenie | F28: =B28*E28 -> 0.00 zł | G28: =C28*E28 -> 0.00 zł
B29: Suma | F29: =SUBTOTAL(109,SprzedażArtykułów[Szacowany przychód]) -> 0.00 zł | G29: =SUBTOTAL(109,SprzedażArtykułów[Rzeczywisty przychód]) -> 0.00 zł

Sheet Podsumowanie zysków i strat
A1: W tym arkuszu są automatycznie aktualizowane podsumowanie zysków i strat oraz wykres przedstawiający łączny przychód i wydatki. W komórkach po prawej stronie jest automatycznie aktualizowany tytuł tego arkusza. Komórki G1 i G2 zawierają podtytuł. W komórkach w tej kolumnie podano przydatne instrukcje na temat korzystania z tego arkusza. Dalsze instrukcje znajdują się w komórce A3. | B1: =Wydatki!B1 -> Budżet wydarzenia | D1: =Wydatki!D1 -> Nazwa wydarzenia | G1: Podsumowanie
G2: zysków i strat
A3: W komórce E3 znajduje się wykres słupkowy przedstawiający porównanie szacowanego przychodu i wydatków z rzeczywistym przychodem i wydatkami. | E3: W tej komórce znajduje się wykres słupkowy przedstawiający porównanie szacowanego przychodu i wydatków z rzeczywistym przychodem i wydatkami.
A4: Tabela podsumowania zaczynająca się w komórce po prawej stronie jest aktualizowana automatycznie. Dalsze instrukcje znajdują się w komórce A8. | B4: Suma | C4: Szacowane | D4: Rzeczywiste
B5: Łączny przychód | C5: =Przychód!F10 -> 1,936.00 zł | D5: =Przychód!F4 -> 1,936.00 zł
B6: Suma wydatków | C6: =Wydatki!G4 -> 882.00 zł | D6: =Wydatki!H4 -> 302.00 zł
A8: W komórce C8 jest automatycznie obliczany szacowany całkowity zysk lub strata, a w komórce D8 — rzeczywisty całkowity zysk lub strata. | B8: Łączny zysk (lub strata) | C8: =C5-C6 -> 1,054.00 zł | D8: =D5-D6 -> 1,634.00 zł
